fUSD/lending_fUSD_20260602
["ID","MTS","AMOUNT","RATE_DAILY","PERIOD"]
[423754484,1780387849000,-164.0,0.0001468,2]
[423754472,1780387849000,-481.99,0.00013981,2]
[423754465,1780387849000,-572.84,0.00013969,2]
[423754452,1780387849000,-166.66,0.00013836,2]
[423754464,1780387849000,-572.84,0.00013966,2]
[423754482,1780387849000,-433.0,0.00014579,2]
[423754446,1780387849000,-892.8192087,0.00013699,2]
[423754447,1780387849000,-982.0,0.0001372,2]
[423754448,1780387849000,-164.47,0.00013787,2]
[423754450,1780387849000,-6069.0,0.0001379,2]
[423754449,1780387849000,-1226.0,0.0001379,2]
[423754454,1780387849000,-3551.0,0.00013903,2]
[423754451,1780387849000,-3640.0,0.0001379,2]
[423754453,1780387849000,-929.0,0.00013903,2]
[423754455,1780387849000,-1357.0,0.00013903,2]
[423754460,1780387849000,-395.95,0.00013962,2]
[423754456,1780387849000,-525.0,0.00013903,2]
[423754457,1780387849000,-1273.0,0.00013903,2]
[423754463,1780387849000,-575.1,0.00013966,2]
[423754459,1780387849000,-572.84,0.00013962,2]
[423754458,1780387849000,-932.0,0.0001393,2]
[423754461,1780387849000,-572.84,0.00013962,2]
[423754466,1780387849000,-397.27,0.00013969,2]
[423754486,1780387849000,-1008.4964027,0.000147,2]
[423754462,1780387849000,-643.75,0.00013966,2]
[423754487,1780387849000,-220.61315034,0.000147,2]
[423754525,1780387849000,-500.0,0.00014799,2]
[423754505,1780387849000,-643.75,0.00014784,2]
[423754506,1780387849000,-1008.49640267,0.00014789,2]
[423754511,1780387849000,-575.1,0.00014791,2]
[423754514,1780387849000,-575.1,0.00014791,2]
[423754510,1780387849000,-481.99,0.00014791,2]
[423754508,1780387849000,-575.1,0.00014791,2]
[423754513,1780387849000,-572.84,0.00014791,2]
[423754517,1780387849000,-395.95,0.00014795,2]
[423754524,1780387849000,-500.0,0.00014799,2]
[423754520,1780387849000,-395.95,0.00014795,2]
[423754518,1780387849000,-395.95,0.00014795,2]
[423754521,1780387849000,-630.3766867,0.00014797,2]
[423754519,1780387849000,-643.75,0.00014795,2]
[423754522,1780387849000,-500.0,0.00014799,2]
[423754526,1780387849000,-18875.71872783,0.000148,2]
[423754523,1780387849000,-481.51539555,0.00014799,2]
[423754507,1780387849000,-1000.0,0.0001479,2]
[423754509,1780387849000,-643.76,0.00014791,2]
[423754516,1780387849000,-572.84,0.00014795,2]
[423754515,1780387849000,-151.0,0.00014795,2]
[423754512,1780387849000,-184.98,0.00014791,2]
[423754492,1780387849000,-481.99,0.00014783,2]
[423754488,1780387849000,-1008.49640267,0.00014722,2]
[423754490,1780387849000,-1000.0,0.0001476,2]
[423754491,1780387849000,-1008.49640267,0.00014767,2]
[423754489,1780387849000,-1008.49640267,0.00014744,2]
[423754493,1780387849000,-481.99,0.00014783,2]
[423754499,1780387849000,-643.75,0.00014783,2]
[423754501,1780387849000,-151.0,0.00014784,2]
[423754485,1780387849000,-3928.88618858,0.000147,2]
[423754502,1780387849000,-575.1,0.00014784,2]
[423754503,1780387849000,-395.95,0.00014784,2]
[423754500,1780387849000,-575.1,0.00014784,2]
[423754496,1780387849000,-395.95,0.00014783,2]
[423754494,1780387849000,-572.84,0.00014783,2]
[423754495,1780387849000,-484.31,0.00014783,2]
[423754498,1780387849000,-572.84,0.00014783,2]
[423754497,1780387849000,-643.75,0.00014783,2]
[423754504,1780387849000,-646.79,0.00014784,2]
[423754527,1780387914000,-150.0,0.00010705,2]
[423754528,1780387929000,-200.0,0.00011776,2]
[423754529,1780387966000,-473.14837168,0.00011957,2]
[423754531,1780387984000,-500.0,0.00012292,2]
[423754532,1780388020000,-500.0,0.00012292,2]
[423754533,1780388037000,-222.15026503,0.00012292,2]
[423754535,1780388147000,152.0,0.00016922,30]
[423754540,1780388443000,135.82059008,0.00016922,30]
[423754547,1780388652000,-163.88573015,0.00012,14]
[423754549,1780388706000,-152.0,0.00011527,7]
[423754550,1780388722000,-152.0,0.00011527,7]
[423754563,1780388963000,-170.9379989,0.00011434,2]
[423754564,1780389017000,-1591.0,0.00011484,2]
[423754807,1780389049000,-1591.0,0.00011484,2]
[423754816,1780389050000,-1200.0,0.0001249,2]
[423754808,1780389050000,-152.22105457,0.00011427,2]
[423754809,1780389050000,-212.01680856,0.00011484,2]
[423754811,1780389050000,-151.65919362,0.00011527,2]
[423754810,1780389050000,-844.20619143,0.00011484,2]
[423754812,1780389050000,-152.0,0.00011534,7]
[423754813,1780389050000,-152.0,0.00011558,7]
[423754814,1780389050000,-703.0,0.00012,5]
[423754815,1780389050000,-215.67541492,0.00012448,2]
[423754818,1780389050000,-500.0,0.00012491,2]
[423754819,1780389050000,-500.0,0.00012491,2]
[423754820,1780389050000,-500.0,0.00012491,2]
[423754822,1780389050000,-500.0,0.00012491,2]
[423754827,1780389050000,-196.75034628,0.00012525,2]
[423754821,1780389050000,-500.0,0.00012491,2]
[423754825,1780389050000,-152.0,0.00012494,2]
[423754828,1780389050000,-6543.23,0.00012757,2]
[423754823,1780389050000,-500.0,0.00012491,2]
[423754824,1780389050000,-485.98936963,0.00012491,2]
[423754826,1780389050000,-155.28,0.00012508,2]
[423754817,1780389050000,-150.0,0.0001249,2]
[423754866,1780389051000,-575.1,0.00013973,2]
[423754861,1780389051000,-1891.1300603,0.00013957,2]
[423754863,1780389051000,-643.75,0.00013962,2]
[423754865,1780389051000,-166.66,0.00013973,2]
[423754857,1780389051000,-155.28,0.00013824,2]
[423754864,1780389051000,-395.95,0.00013969,2]
[423754862,1780389051000,-572.84,0.00013961,2]
[423754859,1780389051000,-161.0,0.000139,2]
[423754867,1780389051000,-575.1,0.00013973,2]
[423754860,1780389051000,-152.22105457,0.0001394,2]
[423754868,1780389051000,-572.88,0.00013973,2]
[423754875,1780389051000,-940.52303466,0.00014,2]
[423754871,1780389051000,-643.75,0.0001398,2]
[423754870,1780389051000,-643.75,0.0001398,2]
[423754872,1780389051000,-395.95,0.00013981,2]
[423754858,1780389051000,-166.66,0.00013836,2]
[423754873,1780389051000,-575.1,0.00013981,2]
[423754877,1780389051000,-164.0,0.0001404,2]
[423754876,1780389051000,-250.0,0.00014,2]
[423754874,1780389051000,-575.1,0.00013988,2]
[423754880,1780389051000,-1226.0,0.0001404,2]
[423754878,1780389051000,-164.0,0.0001404,2]
[423754879,1780389051000,-525.0,0.0001404,2]
[423754881,1780389051000,-6069.0,0.0001404,2]
[423754869,1780389051000,-575.13,0.00013978,2]
[423754855,1780389051000,-500.0,0.00013699,2]
[423754849,1780389051000,-500.0,0.00013699,2]
[423754854,1780389051000,-500.0,0.00013699,2]
[423754883,1780389051000,-198.22,0.000142,2]
[423754829,1780389051000,-160.0,0.00012914,2]
[423754830,1780389051000,-643.75,0.00013159,2]
[423754832,1780389051000,-1000.0,0.00013166,2]
[423754831,1780389051000,-1777.77,0.00013166,2]
[423754833,1780389051000,-150.0,0.00013166,2]
[423754835,1780389051000,-253.93,0.00013534,2]
[423754834,1780389051000,-150.0,0.00013503,2]
[423754838,1780389051000,-266.56,0.00013681,2]
[423754836,1780389051000,-671.9986,0.0001355,2]
[423754840,1780389051000,-166.66,0.00013699,2]
[423754837,1780389051000,-1138.16,0.00013559,2]
[423754841,1780389051000,-500.0,0.00013699,2]
[423754839,1780389051000,-200.0,0.00013699,2]
[423754842,1780389051000,-500.0,0.00013699,2]
[423754844,1780389051000,-252.0723773,0.00013699,2]
[423754843,1780389051000,-500.0,0.00013699,2]
[423754845,1780389051000,-500.0,0.00013699,2]
[423754847,1780389051000,-500.0,0.00013699,2]
[423754846,1780389051000,-500.0,0.00013699,2]
[423754848,1780389051000,-500.0,0.00013699,2]
[423754851,1780389051000,-500.0,0.00013699,2]
[423754850,1780389051000,-500.0,0.00013699,2]
[423754852,1780389051000,-500.0,0.00013699,2]
[423754853,1780389051000,-500.0,0.00013699,2]
[423754856,1780389051000,-1680.0,0.00013739,2]
[423754882,1780389051000,-166.66,0.0001411,2]
[423754884,1780389051000,-166.66,0.00014247,2]
[423754886,1780389051000,-166.66,0.00014384,2]
[423754918,1780389051000,-200.0,0.000148,2]
[423754917,1780389051000,-500.0,0.00014799,2]
[423754916,1780389051000,-500.0,0.00014799,2]
[423754912,1780389051000,-575.1,0.00014791,2]
[423754921,1780389051000,-342.02765463,0.00014803,2]
[423754919,1780389051000,-1000.0,0.000148,2]
[423754920,1780389051000,-550.61,0.00014802,2]
[423754922,1780389051000,-1000.0,0.00014811,2]
[423754923,1780389051000,-1777.77,0.00014812,2]
[423754926,1780389051000,-397.963484,0.00014847,2]
[423754924,1780389051000,-1000.0,0.00014835,2]
[423754914,1780389051000,-623.50462514,0.00014794,2]
[423754925,1780389051000,-307.082578,0.00014847,2]
[423754929,1780389051000,-1000.0,0.00014851,2]
[423754928,1780389051000,-173.24104,0.0001485,2]
[423754931,1780389051000,-1000.0,0.00014853,2]
[423754930,1780389051000,-1000.0,0.00014851,2]
[423754932,1780389051000,-500.0,0.0001488,2]
[423754934,1780389051000,-1000.0,0.00014891,2]
[423754935,1780389051000,-1000.0,0.00014897,2]
[423754933,1780389051000,-200.0,0.0001488,2]
[423754936,1780389051000,-500.0,0.00014899,2]
[423754938,1780389051000,-1819.59246145,0.000149,2]
[423754937,1780389051000,-500.0,0.00014899,2]
[423754927,1780389051000,-173.24103,0.0001485,2]
[423754915,1780389051000,-185.7,0.00014795,2]
[423754939,1780389051000,-1073.2750498,0.000149,2]
[423754911,1780389051000,-395.95,0.00014791,2]
[423754913,1780389051000,-575.1,0.00014794,2]
[423754888,1780389051000,-150.571,0.00014636,2]
[423754885,1780389051000,-250.0,0.00014259,2]
[423754887,1780389051000,-1285.586,0.00014636,2]
[423754889,1780389051000,-1000.0,0.0001464,2]
[423754893,1780389051000,-1000.0,0.000147,2]
[423754890,1780389051000,-164.0,0.0001468,2]
[423754891,1780389051000,-1000.0,0.00014687,2]
[423754892,1780389051000,-2619.25745905,0.000147,2]
[423754894,1780389051000,-238.221636,0.000147,2]
[423754895,1780389051000,-1000.0,0.00014711,2]
[423754897,1780389051000,-1000.0,0.0001474,2]
[423754896,1780389051000,-1000.0,0.00014722,2]
[423754940,1780389051000,-1002.8508825,0.000149,2]
[423754900,1780389051000,-1000.0,0.00014763,2]
[423754898,1780389051000,-1039.89375497,0.00014747,2]
[423754910,1780389051000,-395.95,0.00014791,2]
[423754907,1780389051000,-1000.0,0.00014786,2]
[423754909,1780389051000,-395.95,0.00014791,2]
[423754904,1780389051000,-643.75,0.00014784,2]
[423754908,1780389051000,-575.1,0.00014788,2]
[423754902,1780389051000,-575.1,0.00014783,2]
[423754906,1780389051000,-575.1,0.00014784,2]
[423754901,1780389051000,-575.1,0.00014783,2]
[423754899,1780389051000,-1000.0,0.00014762,2]
[423754903,1780389051000,-395.95,0.00014784,2]
[423754905,1780389051000,-395.95,0.00014784,2]
[423754951,1780389052000,-1000.0,0.00014971,2]
[423754952,1780389052000,-189.58,0.00014985,2]
[423754950,1780389052000,-884.27816907,0.00014965,2]
[423754949,1780389052000,-115.72183093,0.00014965,2]
[423754948,1780389052000,-200.0,0.00014948,2]
[423754946,1780389052000,-1.01928194,0.00014945,2]
[423754943,1780389052000,-220.61315033,0.000149,2]
[423754944,1780389052000,-120.8920223,0.00014901,2]
[423754953,1780389052000,-502.22164104,0.00014999,2]
[423754941,1780389052000,-2923.8740677,0.000149,2]
[423754945,1780389052000,-879.1079777,0.00014901,2]
[423754942,1780389052000,-162.35202044,0.000149,2]
[423754947,1780389052000,-998.98071806,0.00014945,2]
[423754956,1780389052000,-299.0,0.00015,5]
[423754955,1780389052000,-158.0,0.00015,5]
[423754967,1780389052000,-3389.66577347,0.00015,2]
[423754966,1780389052000,-250.0,0.00015,2]
[423754964,1780389052000,-400.0,0.00015,3]
[423754965,1780389052000,-400.0,0.00015,3]
[423754962,1780389052000,-720.45613251,0.00015,2]
[423754954,1780389052000,-330.8934182,0.00014999,2]
[423754963,1780389052000,-1500.0,0.00015,2]
[423754960,1780389052000,-1500.0,0.00015,2]
[423754959,1780389052000,-936.97322831,0.00015,2]
[423754958,1780389052000,-563.02677169,0.00015,2]
[423754961,1780389052000,-779.54386749,0.00015,2]
[423754957,1780389052000,-271.0,0.00015,5]
[423754968,1780389053000,-13059.06333798,0.00015,2]
[423754969,1780389053000,-1127.9012169,0.00015,2]
[423754970,1780389053000,-251.04678957,0.0001169,2]
[423754973,1780389053000,-200.0,0.00013699,2]
[423754974,1780389053000,-1515.4976528,0.00015,2]
[423754971,1780389053000,-282.8335228,0.00011691,2]
[423754972,1780389053000,-13.4015472,0.00011691,2]
[423754975,1780389053000,-982.49383049,0.00015,2]
[423754978,1780389053000,-923.0,0.00015,2]
[423754976,1780389053000,-929.0,0.00013764,2]
[423754983,1780389053000,152.0,0.00011676,7]
[423754982,1780389053000,-1652.40609282,0.00015,2]
[423754977,1780389053000,-12693.08061733,0.00015,2]
[423754979,1780389053000,-493.68017464,0.00015,2]
[423754980,1780389053000,-393.11907673,0.00015,2]
[423754981,1780389053000,-616.0,0.00015,2]
[423754984,1780389070000,152.0,0.0001165,7]
[423754990,1780389134000,-196.0,0.00011483,2]
[423754992,1780389135000,-304.0,0.00011483,2]
[423754993,1780389135000,-46.0,0.00011483,2]
[423754991,1780389135000,-150.0,0.00011139,2]
[423754995,1780389171000,-307.85924202,0.00011482,2]
[423754997,1780389191000,-273.81158394,0.00011482,2]
[423754996,1780389191000,-170.9379989,0.00011382,2]
[423754998,1780389225000,-300.0,0.00011481,2]
[423754999,1780389278000,-170.9379989,0.00011482,2]
[423755000,1780389332000,-300.0,0.0001148,2]
[423755001,1780389385000,-1200.0,0.0001148,2]
[423755002,1780389454000,-300.0,0.0001148,2]
[423755003,1780389481000,83.28911804,0.0001148,2]
[423755008,1780389812000,-300.0,0.00011477,2]
[423755009,1780389828000,-215.50146942,0.00011478,2]
[423755012,1780389865000,-300.0,0.00011477,2]
[423755013,1780389881000,-311.32470799,0.00011478,2]
[423755014,1780389919000,-300.0,0.00011476,2]
[423755015,1780389935000,-1200.0,0.00011476,2]
[423755016,1780389973000,-150.0,0.00011476,2]
[423755017,1780390026000,-1591.0,0.00011471,2]
[423755018,1780390079000,-300.0,0.00011475,2]
[423755025,1780390133000,-300.0,0.00011475,2]
[423755026,1780390186000,-300.0,0.00011474,2]
[423755231,1780390240000,-164.48382561,0.00011477,7]
[423755390,1780390241000,-1066.66,0.00012747,2]
[423755392,1780390241000,-194.61,0.00012754,2]
[423755388,1780390241000,-148.56633906,0.00012621,2]
[423755375,1780390241000,-292.399994,0.00012605,2]
[423755386,1780390241000,-51.43366094,0.00012621,2]
[423755378,1780390241000,-369.92760279,0.00012605,2]
[423755383,1780390241000,-1680.0,0.00012621,2]
[423755309,1780390241000,-268.95559825,0.00011474,2]
[423755324,1780390241000,-626.41942051,0.00012605,2]
[423755321,1780390241000,-3536.51181751,0.00012605,2]
[423755319,1780390241000,-473.76,0.00012603,2]
[423755317,1780390241000,-172.81,0.00011997,2]
[423755315,1780390241000,-215.67541492,0.00011662,2]
[423755394,1780390241000,-150.0,0.00012879,2]
[423755313,1780390241000,-646.04440175,0.00011474,2]
[423755307,1780390241000,-285.0,0.00011474,2]
[423755381,1780390241000,-481.00116519,0.00012605,2]
[423755403,1780390241000,-1000.0,0.0001288,2]
[423755414,1780390241000,-159.1,0.00013166,2]
[423755407,1780390241000,-948.46,0.00012978,2]
[423755454,1780390241000,-1087.80736992,0.0001372,2]
[423755460,1780390241000,-504.24820138,0.00013873,2]
[423755462,1780390241000,-2351.0,0.00013884,2]
[423755464,1780390241000,-500.0,0.00013939,2]
[423755456,1780390241000,-503.19263008,0.0001372,2]
[423755452,1780390241000,-37.20029438,0.0001372,2]
[423755458,1780390241000,-166.66,0.00013836,2]
[423755405,1780390241000,-150.48743813,0.0001297,2]
[423755432,1780390241000,-1553.79970562,0.0001372,2]
[423755426,1780390241000,-1591.0,0.000134,2]
[423755428,1780390241000,-200.0,0.00013699,2]
[423755424,1780390241000,-999.3149797,0.000134,2]
[423755418,1780390241000,-164.0,0.000134,2]
[423755416,1780390241000,-172.81,0.0001326,2]
[423755412,1780390241000,-575.1,0.0001314,2]
[423755420,1780390241000,-1319.6850203,0.000134,2]
[423755409,1780390241000,-692.37,0.00013004,2]
[423755429,1780390241000,-166.66,0.00013699,2]
[423755466,1780390242000,-44945.89916854,0.0001394,2]
[423755483,1780390242000,-1436.05,0.0001394,2]
[423755475,1780390242000,-500.74642182,0.0001394,2]
[423755473,1780390242000,-400.0,0.0001394,2]
[423755485,1780390242000,-337.05962658,0.0001394,2]
[423755471,1780390242000,-689.96772996,0.0001394,2]
[423755719,1780390243000,-97287.92181719,0.0001394,2]
[423756048,1780390246000,-929.0,0.00014115,2]
[423756046,1780390246000,-504.24820133,0.00014101,2]
[423756043,1780390246000,-504.24820133,0.00013987,2]
[423756042,1780390246000,-166.66,0.00013973,2]
[423756044,1780390246000,-250.0,0.00014,2]
[423756047,1780390246000,-166.66,0.0001411,2]
[423756041,1780390246000,-575.1,0.00013969,2]
[423756039,1780390246000,-225027.20973228,0.0001394,2]
[423756040,1780390246000,-572.84,0.00013961,2]
[423756038,1780390246000,-27955.6,0.0001394,2]
[423756037,1780390246000,-1921.73350908,0.0001394,2]
[423756022,1780390246000,-3100.10278601,0.0001394,2]
[423756019,1780390246000,-15463.13040854,0.0001394,2]
[423756050,1780390246000,-1273.0,0.00014115,2]
[423756060,1780390246000,-504.24820133,0.00014329,2]
[423756045,1780390246000,-1591.0,0.0001404,2]
[423756051,1780390246000,-525.0,0.00014115,2]
[423756049,1780390246000,-3551.0,0.00014115,2]
[423756063,1780390246000,-504.24820133,0.00014444,2]
[423756065,1780390246000,-504.24820133,0.00014672,2]
[423756064,1780390246000,-504.24820133,0.00014558,2]
[423756066,1780390246000,-1591.0,0.0001468,2]
[423756062,1780390246000,-166.66,0.00014384,2]
[423756061,1780390246000,-1066.66,0.00014341,2]
[423756067,1780390246000,-500.0,0.00014699,2]
[423756059,1780390246000,-166.66,0.00014247,2]
[423756057,1780390246000,-504.24820133,0.00014215,2]
[423756058,1780390246000,-500.0,0.00014219,2]
[423756053,1780390246000,-418.0,0.00014115,2]
[423756055,1780390246000,-473.76,0.00014179,2]
[423756052,1780390246000,-932.0,0.00014115,2]
[423756054,1780390246000,-3640.0,0.00014115,2]
[423756056,1780390246000,-178.4,0.000142,2]
[423756087,1780390247000,-163.15789515,0.00014911,2]
[423756080,1780390247000,-643.75,0.00014791,2]
[423756083,1780390247000,-500.0,0.0001488,2]
[423756078,1780390247000,-572.84,0.00014791,2]
[423756089,1780390247000,-500.0,0.00014999,2]
[423756084,1780390247000,-200.0,0.0001488,2]
[423756069,1780390247000,-150.572,0.00014783,2]
[423756070,1780390247000,-575.1,0.00014784,2]
[423756068,1780390247000,-822.775,0.00014783,2]
[423756071,1780390247000,-575.11,0.00014784,2]
[423756075,1780390247000,-575.1,0.00014791,2]
[423756073,1780390247000,-504.24820133,0.00014786,2]
[423756082,1780390247000,-2305.0480576,0.00014804,2]
[423756079,1780390247000,-575.1,0.00014791,2]
[423756085,1780390247000,-725.0829,0.000149,2]
[423756091,1780390247000,-500.0,0.00014999,2]
[423756086,1780390247000,-504.24820133,0.000149,2]
[423756101,1780390247000,-3155368.43832792,0.00015,2]
[423756099,1780390247000,-156.0,0.00015,5]
[423756098,1780390247000,-214.0,0.00015,5]
[423756093,1780390247000,-500.0,0.00014999,2]
[423756095,1780390247000,-500.0,0.00014999,2]
[423756097,1780390247000,-315.50247357,0.00014999,2]
[423756100,1780390247000,-250.0,0.00015,2]
[423756094,1780390247000,-500.0,0.00014999,2]
[423756096,1780390247000,-500.0,0.00014999,2]
[423756081,1780390247000,-643.75,0.00014795,2]
[423756088,1780390247000,-161.04623903,0.0001499,2]
[423756077,1780390247000,-184.98,0.00014791,2]
[423756090,1780390247000,-500.0,0.00014999,2]
[423756092,1780390247000,-500.0,0.00014999,2]
[423756102,1780390247000,-232770.81157662,0.00015,2]
[423756104,1780390293000,-481.24999893,0.00011474,2]
[423756106,1780390694000,-422.24501201,0.00011373,2]
[423756110,1780390710000,-300.0,0.0001147,2]
[423756111,1780390747000,-150.0,0.0001147,2]
[423756113,1780390764000,-260.53651874,0.0001147,2]
[423756112,1780390764000,-300.0,0.00011469,2]
[423756114,1780390802000,-300.0,0.0001147,2]
[423756115,1780390818000,-501.69742277,0.0001147,2]
[423756116,1780390854000,-500.0,0.0001147,2]
[423756117,1780390870000,-500.0,0.00011469,2]
[423756119,1780390907000,-351.7616055,0.00011469,2]
[423756126,1780390961000,-444.74958284,0.00011469,2]
[423756128,1780391014000,-160.0,0.00011469,2]
[423756129,1780391067000,-215.67541492,0.00011578,2]
[423756131,1780391330000,-215.67541492,0.0001163,2]
[423756134,1780391384000,-152.0,0.00011703,7]
[423756137,1780391437000,-152.0,0.00011738,7]
[423756166,1780391439000,-241.97,0.0001285,2]
[423756176,1780391439000,-1680.0,0.0001297,2]
[423756169,1780391439000,-500.0,0.00012912,2]
[423756175,1780391439000,-420.0,0.00012947,2]
[423756168,1780391439000,-154.74,0.00012869,2]
[423756173,1780391439000,-500.0,0.00012928,2]
[423756170,1780391439000,-311.32470799,0.00012926,2]
[423756167,1780391439000,-255.0,0.00012864,2]
[423756165,1780391439000,-150.0,0.0001283,2]
[423756171,1780391439000,-307.85924202,0.00012926,2]
[423756174,1780391439000,-163.58,0.00012928,2]
[423756177,1780391439000,-1000.0,0.00013022,2]
[423756179,1780391439000,-194.61,0.00013108,2]
[423756178,1780391439000,-1170.37,0.00013045,2]
[423756184,1780391439000,-1502.01,0.0001338,2]
[423756182,1780391439000,-692.37,0.00013214,2]
[423756180,1780391439000,-154.74,0.0001319,2]
[423756181,1780391439000,-500.0,0.00013202,2]
[423756185,1780391439000,-160.21,0.00013385,2]
[423756164,1780391439000,-196.75034628,0.00012782,2]
[423756172,1780391439000,-1591.89,0.00012927,2]
[423756160,1780391439000,-500.0,0.00011792,2]
[423756143,1780391439000,-832.51305384,0.00011791,2]
[423756162,1780391439000,-150.0,0.00011908,2]
[423756139,1780391439000,-150.0,0.00011791,2]
[423756140,1780391439000,-156.12944815,0.00011791,2]
[423756144,1780391439000,-500.0,0.00011792,2]
[423756145,1780391439000,-267.48694616,0.00011792,2]
[423756142,1780391439000,-367.48694616,0.00011791,2]
[423756141,1780391439000,-143.87055185,0.00011791,2]
[423756183,1780391439000,-9630.1467,0.000133,2]
[423756147,1780391439000,-500.0,0.00011792,2]
[423756149,1780391439000,-500.0,0.00011792,2]
[423756146,1780391439000,-232.51305384,0.00011792,2]
[423756150,1780391439000,-500.0,0.00011792,2]
[423756151,1780391439000,-500.0,0.00011792,2]
[423756148,1780391439000,-500.0,0.00011792,2]
[423756152,1780391439000,-500.0,0.00011792,2]
[423756154,1780391439000,-500.0,0.00011792,2]
[423756153,1780391439000,-500.0,0.00011792,2]
[423756155,1780391439000,-500.0,0.00011792,2]
[423756158,1780391439000,-500.0,0.00011792,2]
[423756156,1780391439000,-500.0,0.00011792,2]
[423756157,1780391439000,-500.0,0.00011792,2]
[423756163,1780391439000,-160.0,0.00012782,2]
[423756159,1780391439000,-157.3566852,0.00011792,2]
[423756186,1780391439000,-150.0,0.00013488,2]
[423756161,1780391439000,-3182.0,0.00011793,2]
[423756189,1780391439000,-150.0,0.00013665,2]
[423756221,1780391439000,-326.44334516,0.00013699,2]
[423756218,1780391439000,-500.0,0.00013699,2]
[423756233,1780391439000,-500.0,0.00013939,2]
[423756219,1780391439000,-500.0,0.00013699,2]
[423756213,1780391439000,-166.66,0.00013699,2]
[423756215,1780391439000,-500.0,0.00013699,2]
[423756217,1780391439000,-500.0,0.00013699,2]
[423756222,1780391439000,-173.55665484,0.00013699,2]
[423756224,1780391439000,-380.57965482,0.00013699,2]
[423756226,1780391439000,-166.66,0.00013836,2]
[423756228,1780391439000,-409.84657352,0.00013939,2]
[423756223,1780391439000,-119.42034518,0.00013699,2]
[423756229,1780391439000,-355.86500225,0.00013939,2]
[423756227,1780391439000,-95.61479845,0.00013939,2]
[423756225,1780391439000,-154.74,0.00013834,2]
[423756230,1780391439000,-144.13499775,0.00013939,2]
[423756232,1780391439000,-500.0,0.00013939,2]
[423756231,1780391439000,-500.0,0.00013939,2]
[423756234,1780391439000,-500.0,0.00013939,2]
[423756235,1780391439000,-500.0,0.00013939,2]
[423756188,1780391439000,-154.74,0.00013512,2]
[423756220,1780391439000,-500.0,0.00013699,2]
[423756216,1780391439000,-326.56665987,0.00013699,2]
[423756212,1780391439000,-200.0,0.00013699,2]
[423756211,1780391439000,-212.69957863,0.00013698,2]
[423756191,1780391439000,-158.0,0.00013665,2]
[423756195,1780391439000,-500.0,0.00013665,2]
[423756192,1780391439000,-500.0,0.00013665,2]
[423756187,1780391439000,-161.07,0.00013498,2]
[423756214,1780391439000,-150.48743813,0.00013699,2]
[423756193,1780391439000,-500.0,0.00013665,2]
[423756194,1780391439000,-500.0,0.00013665,2]
[423756197,1780391439000,-500.0,0.00013665,2]
[423756196,1780391439000,-500.0,0.00013665,2]
[423756198,1780391439000,-312.0090566,0.00013665,2]
[423756199,1780391439000,-500.0,0.00013665,2]
[423756190,1780391439000,-150.0,0.00013665,2]
[423756207,1780391439000,-500.0,0.00013665,2]
[423756205,1780391439000,-500.0,0.00013665,2]
[423756204,1780391439000,-500.0,0.00013665,2]
[423756200,1780391439000,-500.0,0.00013665,2]
[423756202,1780391439000,-500.0,0.00013665,2]